bitfinex/quotes_ETHUSD_20240602
["timestamp","ask_amount","ask_price","bid_price","bid_amount"]
[1717371424397,2.64253,3784.3,3783.8,0.05213695]
[1717371424640,2.64253,3784.3,3783.7,2.4321]
[1717371424851,2.64253,3784.3,3783.8,0.05213695]
[1717371425243,2.64253,3784.3,3783.7,2.4321]
[1717371425446,2.64253,3784.3,3784.0,2.4118]
[1717371426908,2.62382588,3784.3,3784.0,2.4118]
[1717371435109,3.12124,3784.7,3784.1,0.05161179]
[1717371435270,2.64224,3784.7,3784.0,2.4118]
[1717371435478,2.64224,3784.7,3784.1,0.05161179]
[1717371435686,2.64224,3784.7,3784.0,2.4118]
[1717371435980,2.64224,3784.7,3784.1,0.05161179]
[1717371436385,2.64224,3784.7,3784.0,2.4118]
[1717371436682,2.64224,3784.7,3784.1,0.05161179]
[1717371436883,2.64224,3784.7,3784.0,2.4118]
[1717371437086,0.479,3784.6,3784.1,0.05161179]
[1717371437287,0.479,3784.6,3784.0,2.4118]
[1717371437488,0.479,3784.6,3784.1,0.05161179]
[1717371437684,2.6424,3784.5,3784.0,2.4118]
[1717371437969,2.6424,3784.5,3784.1,0.05161179]
[1717371438390,2.6424,3784.5,3784.0,2.4118]
[1717371438968,2.6424,3784.5,3784.1,0.05161179]
[1717371439478,2.6424,3784.5,3784.0,2.4118]
[1717371439785,2.6424,3784.5,3784.1,0.05161179]
[1717371440178,2.6424,3784.5,3784.0,2.4118]
[1717371440617,2.6424,3784.5,3784.1,0.05161179]
[1717371440975,2.6424,3784.5,3784.0,2.4118]
[1717371441374,2.6424,3784.5,3784.1,0.05161179]
[1717371441813,2.6424,3784.5,3784.0,2.4118]
[1717371442198,2.6424,3784.5,3784.1,0.05161179]
[1717371442710,2.6424,3784.5,3784.0,2.4118]
[1717371442893,2.6424,3784.5,3784.1,0.05161179]
[1717371443079,2.6424,3784.5,3784.0,2.4118]
[1717371443414,2.6424,3784.5,3784.1,0.05161179]
[1717371443818,2.6424,3784.5,3784.0,2.4118]
[1717371444321,2.6424,3784.5,3784.1,0.05159842]
[1717371444520,2.6424,3784.5,3784.0,2.4118]
[1717371444813,2.6424,3784.5,3784.1,0.05159842]
[1717371445311,2.6424,3784.5,3784.0,2.4118]
[1717371445648,2.6424,3784.5,3784.1,0.05159842]
[1717371445976,2.6424,3784.5,3784.0,2.4118]
[1717371446421,2.6424,3784.5,3784.1,0.05159842]
[1717371446584,2.6424,3784.5,3784.0,2.4118]
[1717371447094,2.6424,3784.5,3784.1,0.05159842]
[1717371447292,2.6424,3784.5,3784.0,2.4118]
[1717371447493,2.6424,3784.5,3784.1,0.05159842]
[1717371447693,2.6424,3784.5,3784.0,2.4118]
[1717371447893,2.6424,3784.5,3784.1,0.05159842]
[1717371448420,2.6424,3784.5,3784.0,2.4118]
[1717371448781,2.6424,3784.5,3784.1,0.05159842]
[1717371449098,2.6424,3784.5,3784.0,2.4118]
[1717371449313,2.6424,3784.5,3784.1,0.05159842]
[1717371449821,2.6424,3784.5,3784.0,2.4118]
[1717371450121,2.6424,3784.5,3784.1,0.05159842]
[1717371450433,2.6424,3784.5,3784.0,2.4118]
[1717371450726,2.6424,3784.5,3784.1,0.05159842]
[1717371451125,2.6424,3784.5,3784.0,2.4118]
[1717371451324,2.6424,3784.5,3784.1,0.05159842]
[1717371451627,2.6424,3784.5,3784.0,2.4118]
[1717371452003,0.57130005,3784.4,3784.1,0.05159842]
[1717371452526,0.57129565,3784.4,3784.0,2.4118]
[1717371452829,0.57129565,3784.4,3784.1,0.05159842]
[1717371453140,0.57129565,3784.4,3784.0,2.4118]
[1717371453298,0.57129565,3784.4,3784.2,0.05159842]
[1717371453498,0.57129565,3784.4,3784.0,2.4118]
[1717371454129,0.57129565,3784.4,3784.1,0.05159842]
[1717371454341,0.57129565,3784.4,3784.0,2.4118]
[1717371454853,2.6424,3784.5,3784.1,0.05158509]
[1717371455398,2.6424,3784.5,3784.0,2.4118]
[1717371455704,2.6424,3784.5,3784.1,0.05158509]
[1717371456015,2.6424,3784.5,3784.0,2.4118]
[1717371456342,2.6424,3784.5,3784.1,0.05158509]
[1717371456939,2.6424,3784.5,3784.0,2.4118]
[1717371457143,2.6424,3784.5,3784.1,0.05158509]
[1717371457322,2.6424,3784.5,3784.0,2.4118]
[1717371457506,2.6424,3784.5,3784.1,0.05158509]
[1717371457704,2.6424,3784.5,3784.0,2.4118]
[1717371457904,2.6424,3784.5,3784.1,0.05158509]
[1717371458215,2.6424,3784.5,3784.0,2.4118]
[1717371458540,2.6424,3784.5,3784.1,0.05158509]
[1717371458844,2.6424,3784.5,3784.0,2.4118]
[1717371459149,2.6424,3784.5,3784.1,0.05158509]
[1717371459640,2.6424,3784.5,3784.0,2.4118]
[1717371460001,2.6424,3784.5,3784.1,0.05158509]
[1717371460438,2.6424,3784.5,3784.0,2.4118]
[1717371460814,2.6424,3784.5,3784.1,0.05158509]
[1717371461132,2.6424,3784.5,3784.0,2.4118]
[1717371461297,2.6424,3784.5,3784.1,0.05158509]
[1717371461643,2.6424,3784.5,3784.0,2.4118]
[1717371462001,2.6424,3784.5,3784.1,0.05158509]
[1717371462402,2.6424,3784.5,3784.0,2.4118]
[1717371462639,7.28,3784.8,3784.2,0.05158509]
[1717371462811,7.28,3784.8,3784.0,2.8908]
[1717371463211,0.57126764,3784.7,3784.0,2.8908]
[1717371463815,0.57126764,3784.7,3784.0,3.17988]
[1717371464934,0.57126764,3784.7,3784.1,2.3378]
[1717371467533,0.57124261,3784.7,3784.1,2.3378]
[1717371474664,3.21347643,3784.7,3784.1,2.3378]
[1717371474824,2.64222,3784.7,3784.1,2.3378]
[1717371475857,0.57125653,3784.6,3784.1,2.3378]
[1717371476235,2.64222,3784.7,3784.1,2.3378]
[1717371476752,0.57126131,3784.6,3784.1,2.3378]
[1717371477488,0.57125979,3784.6,3784.1,2.3378]
[1717371479312,2.64222,3784.7,3784.1,2.3378]
[1717371482244,0.57125648,3784.6,3784.1,2.3378]
[1717371483003,2.64222,3784.7,3784.1,2.3378]
[1717371484006,0.5712517,3784.6,3784.1,2.3378]
[1717371486192,2.64237,3784.5,3783.6,2.2662]
[1717371486704,2.64237,3784.5,3783.6,2.7452]
[1717371486885,0.57129711,3784.4,3783.6,2.7452]
[1717371487202,0.57129711,3784.4,3783.6,2.4452]
[1717371489703,0.57129711,3784.4,3783.6,1.9662]
[1717371489902,1.17621382,3784.4,3783.6,2.4452]
[1717371491323,0.60491671,3784.4,3783.6,2.4452]
[1717371494705,2.64253,3784.3,3783.6,1.9662]
[1717371495270,2.64253,3784.3,3783.7,0.04989688]
[1717371496088,2.64253,3784.3,3783.8,2.4431]
[1717371496319,2.64253,3784.3,3783.8,2.49299688]
[1717371499217,3.01517467,3784.3,3783.8,2.49299688]
[1717371503731,2.64253,3784.3,3783.8,2.49299688]
[1717371504431,2.64253,3784.3,3783.8,2.97199688]
[1717371506612,2.64116,3786.3,3783.8,2.97199688]
[1717371506613,0.26750386,3786.2,3784.0,0.479]
[1717371506803,2.3931,3787.4,3785.6,3.12052]
[1717371506804,0.57126101,3786.1,3785.6,3.12052]
[1717371507094,0.57126101,3786.1,3785.4,2.2615]
[1717371507297,1.05026101,3786.3,3785.4,2.2615]
[1717371507510,1.05026101,3786.3,3785.5,0.04981677]
[1717371508118,0.479,3785.8,3785.5,0.04981677]
[1717371508488,0.57126101,3786.3,3784.9,0.479]
[1717371508688,0.479,3785.9,3785.6,0.04961211]
[1717371508902,0.479,3785.9,3784.9,0.479]
[1717371509364,0.479,3785.9,3785.0,0.04961211]
[1717371510496,0.479,3785.9,3785.0,2.69156211]
[1717371513825,0.479,3785.9,3785.0,2.64195]
[1717371514040,0.3479,3785.8,3785.0,2.64195]
[1717371523257,0.3479,3785.8,3785.2,2.64183]
[1717371523635,0.3479,3785.8,3785.3,0.04869582]
[1717371524120,0.3479,3785.8,3785.2,2.64183]
[1717371524320,0.3479,3785.8,3785.4,0.04869582]
[1717371524521,0.3479,3785.8,3785.3,0.04873584]
[1717371524722,0.3479,3785.8,3785.2,2.64183]
[1717371524944,0.3479,3785.8,3785.4,0.04873584]
[1717371525223,0.3479,3785.8,3785.5,0.04873584]
[1717371525730,0.3479,3785.8,3785.2,2.64183]
[1717371525928,0.3479,3785.8,3785.6,0.04873584]
[1717371526133,0.3479,3785.8,3785.2,2.64183]
[1717371540268,0.479,3785.4,3784.8,4.9036]
[1717371540443,0.479,3785.1,3784.4,5.0366]
[1717371540638,0.479,3785.1,3784.9,0.04538155]
[1717371540839,0.479,3785.1,3784.4,5.0366]
[1717371542888,0.479,3785.1,3784.5,0.04559056]
[1717371546094,2.4309,3785.2,3783.1,0.28558814]
[1717371546095,2.4309,3785.2,3784.1,2.4176]
[1717371546245,0.479,3784.6,3783.6,2.64296]
[1717371546589,7.759,3784.8,3784.2,0.04454026]
[1717371546945,7.759,3784.8,3783.8,0.479]
[1717371547101,7.28,3784.8,3784.3,0.04456248]
[1717371547250,7.28,3784.8,3784.4,2.4176]
[1717371547457,2.64201,3785.0,3784.4,2.46232694]
[1717371547993,2.64201,3785.0,3784.4,2.4176]
[1717371549597,3.12101,3785.0,3784.4,2.4176]
[1717371549780,0.5795,3784.9,3784.4,2.4176]
[1717371549981,0.5795,3784.9,3784.5,0.04325373]
[1717371550186,0.5795,3784.9,3784.4,2.4176]
[1717371550571,0.5795,3784.9,3784.5,0.04325373]
[1717371550769,0.5795,3784.9,3784.4,2.4176]
[1717371551299,0.5795,3784.9,3784.5,0.04325373]
[1717371551498,0.39436,3784.8,3784.5,0.04325373]
[1717371551710,0.39436,3784.8,3784.4,2.4176]
[1717371551860,0.39436,3784.8,3784.6,0.04325373]
[1717371552059,0.39436,3784.8,3784.4,2.4176]
[1717371552254,0.39436,3784.8,3784.7,0.04325373]
[1717371552511,0.39436,3784.8,3784.4,2.4176]
[1717371552959,0.39436,3784.8,3784.5,0.04325373]
[1717371553157,0.39436,3784.8,3784.4,2.4176]
[1717371553391,0.39436,3784.8,3784.5,0.04325373]
[1717371553575,0.39436,3784.8,3784.4,2.4176]
[1717371553771,0.39436,3784.8,3784.5,0.04325373]
[1717371554015,0.39436,3784.8,3784.4,2.4176]
[1717371554162,0.39436,3784.8,3784.5,0.04325373]
[1717371554507,0.39436,3784.8,3784.4,2.4176]
[1717371554961,0.39436,3784.8,3784.5,0.04325373]
[1717371555161,0.39436,3784.8,3784.4,2.4176]
[1717371555398,0.39436,3784.8,3784.5,0.04325373]
[1717371555570,0.39436,3784.8,3784.4,2.4176]
[1717371555771,0.39436,3784.8,3784.5,0.04325373]
[1717371555979,0.39436,3784.8,3784.4,2.4176]
[1717371556293,0.39436,3784.8,3784.5,0.04325373]
[1717371556711,0.39436,3784.8,3784.4,2.4176]
[1717371557199,0.39436,3784.8,3784.5,0.04325373]
[1717371557404,0.409487,3784.7,3784.1,2.2701]
[1717371557719,0.409487,3784.7,3784.2,0.04325373]
[1717371559308,2.751387,3784.7,3784.2,0.04325373]
[1717371559675,2.751387,3784.7,3783.9,2.6427]
[1717371559876,2.751387,3784.7,3784.3,0.04344469]
[1717371560206,0.3230387,3784.6,3784.4,0.04344469]
[1717371560417,0.3230387,3784.6,3783.9,2.6427]
[1717371560711,2.751387,3784.7,3784.0,0.04344469]
[1717371560865,2.3419,3784.7,3784.0,0.04344469]
[1717371562267,2.64201,3785.0,3784.0,0.04344469]
[1717371562469,3.12101,3785.0,3784.1,2.2882]
[1717371562708,3.12101,3785.0,3784.1,2.7672]
[1717371567309,2.64201,3785.0,3784.1,2.7672]
[1717371567536,3.12101,3785.0,3784.1,2.7672]
[1717371569542,4.07557462,3785.0,3784.1,2.7672]
[1717371574418,4.07557462,3785.0,3784.1,2.2882]
[1717371574916,4.07557462,3785.0,3784.1,2.7672]
[1717371578137,4.07557462,3785.0,3784.1,2.2882]
[1717371579167,2.3967,3784.7,3783.9,2.6427]
[1717371579467,2.3967,3784.7,3784.0,0.04344913]
[1717371585259,0.479,3784.8,3784.0,0.04344913]
[1717371585884,2.89746646,3784.9,3784.0,0.04344913]
[1717371586377,2.64201,3785.0,3784.1,2.2751]
[1717371603615,3.12101,3785.0,3784.1,2.2751]
[1717371606148,2.64176,3785.4,3783.6,2.64296]
[1717371606347,2.64176,3785.4,3784.8,0.479]
[1717371606553,2.64176,3785.4,3784.7,2.4834]
[1717371606554,0.992176,3785.2,3784.7,2.4834]
[1717371606721,0.992176,3785.2,3784.4,2.64237]
[1717371606722,2.2873,3785.3,3784.9,0.04389333]
[1717371606921,2.2873,3785.3,3784.4,5.12577]
[1717371607124,2.2873,3785.3,3785.0,0.04377339]
[1717371607326,2.2873,3785.3,3784.4,5.12577]
[1717371607563,2.2873,3785.1,3783.6,2.64297]
[1717371607868,2.85850853,3785.0,3783.7,2.4834]
[1717371608068,0.479,3784.3,3783.7,2.4834]
[1717371608264,0.479,3784.5,3783.8,0.03925767]
[1717371608465,1.00463,3784.4,3783.7,2.4834]
[1717371612634,1.00463,3784.4,3783.2,2.9541]
[1717371612635,3.12152,3784.3,3783.2,2.9541]
[1717371613038,3.12152,3784.3,3783.3,0.03925767]
[1717371613388,3.12152,3784.3,3783.4,0.479]
[1717371613863,3.12152,3784.3,3783.5,0.03925767]
[1717371614192,2.64264,3784.1,3783.5,0.03925767]
[1717371616285,2.64264,3784.1,3783.3,0.479]
[1717371616967,2.64264,3784.1,3783.4,0.03962167]
[1717371621262,0.479,3783.9,3783.4,0.03962167]
[1717371621530,0.479,3783.9,3783.1,2.64328]
[1717371621531,2.4838,3783.8,3783.1,2.64328]
[1717371621807,2.4838,3783.8,3783.2,0.03999458]
[1717371624668,2.64284,3783.8,3783.2,0.03999458]
[1717371624868,0.479,3783.7,3783.2,0.03999458]
[1717371625069,0.479,3783.7,3782.7,5.618]
[1717371625269,0.479,3783.7,3782.8,0.03999458]
[1717371625473,1.09821155,3783.7,3782.8,0.03999458]
[1717371625804,1.09821155,3783.7,3782.8,0.51899458]
[1717371627672,0.61921155,3783.7,3782.8,0.51899458]
[1717371631421,0.61921155,3783.7,3782.8,0.56902798]
[1717371635018,1.09821155,3783.7,3782.8,0.56902798]
[1717371636281,3.57453271,3783.6,3782.8,0.09002798]
[1717371659439,0.479,3783.6,3782.9,2.64344]
[1717371659701,0.57143557,3784.1,3783.5,2.3673]
[1717371659964,7.28,3784.2,3783.6,0.479]
[1717371660163,7.28,3784.2,3783.7,0.09013897]
[1717371660164,8.53459,3784.2,3783.7,0.09013897]
[1717371660365,8.53459,3784.2,3783.4,0.479]
[1717371660570,8.53459,3784.2,3783.5,0.09013897]
[1717371660771,8.53459,3784.2,3783.2,5.48953]
[1717371660940,0.84676169,3784.1,3783.6,0.09013897]
[1717371661271,0.84676169,3784.1,3783.2,5.48953]
[1717371661733,0.84676169,3784.1,3783.3,0.09013897]
[1717371663074,2.4179,3784.0,3783.3,0.09013897]
[1717371667471,2.4179,3784.0,3783.3,0.56913897]
[1717371674285,2.4179,3784.0,3783.4,2.64311]
[1717371674641,2.4179,3784.0,3783.5,0.08967282]
[1717371682359,2.4179,3784.0,3783.6,2.64297]
[1717371682567,7.28,3784.2,3783.8,0.479]
[1717371682761,7.28,3784.2,3783.9,0.08957958]
[1717371686395,2.4198,3784.5,3783.9,0.08957958]
[1717371686596,2.4198,3784.5,3783.8,0.479]
[1717371688181,2.4198,3784.5,3783.6,2.64297]
[1717371688389,2.4198,3784.5,3783.7,0.479]
[1717371696827,2.4198,3784.5,3783.8,2.64279]
[1717371697022,9.6308,3784.8,3783.9,2.9686]
[1717371697186,9.6308,3784.8,3784.1,0.479]
[1717371698929,9.6308,3784.8,3784.2,0.08651813]
[1717371700592,7.28,3784.8,3784.2,0.08651813]
[1717371700794,7.28,3784.8,3784.2,0.47964612]
[1717371701106,7.28,3784.8,3784.0,3.12169]
[1717371701633,2.4895,3784.7,3784.1,0.08651813]
[1717371720452,0.479,3784.5,3784.1,0.08651813]
[1717371720664,2.9721,3784.3,3783.3,2.2766]
[1717371720825,0.561453,3784.2,3783.3,2.7556]
[1717371721011,2.9721,3784.3,3783.3,2.7556]
[1717371721619,2.64257,3784.2,3783.3,2.7556]
[1717371721850,2.64257,3784.2,3783.4,0.08594816]
[1717371728935,2.64257,3784.2,3783.5,0.479]
[1717371729138,2.64257,3784.2,3783.6,2.2766]
[1717371729540,2.64257,3784.2,3783.7,0.08617009]
[1717371732274,0.29685,3784.4,3783.7,0.08617009]
[1717371732428,5.13539,3784.6,3783.7,0.56517009]
[1717371733038,0.479,3784.5,3783.7,0.08617009]
[1717371747810,2.64242,3784.4,3783.7,0.08617009]
[1717371748194,0.479,3784.3,3783.7,0.08617009]
[1717371749884,2.64257,3784.2,3783.7,0.08617009]
[1717371750089,0.479,3783.9,3783.7,0.08617009]
[1717371750474,0.479,3783.9,3783.2,2.3938]
[1717371750704,2.64281,3783.9,3783.8,0.08617897]
[1717371750886,5.60191,3783.9,3782.9,2.4306]
[1717371751217,0.479,3783.7,3782.9,2.4306]
[1717371751393,0.479,3783.7,3783.0,0.08617897]
[1717371752193,1.039191,3783.7,3783.0,0.08617897]
[1717371758065,0.560191,3783.7,3783.0,0.08617897]
[1717371758243,5.60191,3783.9,3783.0,0.08617897]
[1717371759666,5.12291,3783.9,3783.0,0.56517897]
[1717371762273,0.479,3783.7,3783.0,0.08617897]
[1717371763737,5.60191,3783.9,3783.0,0.08617897]
[1717371770375,0.479,3783.7,3783.0,0.08617897]
[1717371770558,1.039191,3783.7,3783.0,0.08617897]
[1717371771893,5.12291,3783.9,3783.0,0.08617897]
[1717371771894,5.60191,3783.9,3783.0,0.08617897]
[1717371780838,5.12291,3783.9,3783.0,0.56517897]
[1717371781964,5.60191,3783.9,3783.0,0.08617897]
[1717371783945,2.64281,3783.9,3783.1,2.3615]
[1717371784150,2.64281,3783.9,3783.1,2.44723905]
[1717371786347,3.2165467,3783.9,3783.1,2.44723905]
[1717371786753,3.6955467,3783.9,3783.1,2.44723905]
[1717371788524,3.6955467,3783.9,3783.1,2.3615]
[1717371789071,3.6955467,3783.9,3783.2,0.08573905]
[1717371790828,3.2165467,3783.9,3783.2,0.08573905]
[1717371796798,2.64296,3783.7,3783.2,0.08573905]
[1717371797005,2.88851037,3783.8,3782.3,4.93987]
[1717371797006,2.2574,3783.3,3782.3,4.93987]
[1717371797306,0.479,3783.1,3782.3,4.93987]
[1717371798009,2.7364,3783.3,3782.3,5.41887]
[1717371798171,3.73804,3783.3,3782.3,5.41887]
[1717371798571,0.479,3782.8,3782.3,2.296]
[1717371799470,0.479,3783.0,3782.3,2.296]
[1717371800129,0.479,3782.7,3781.9,0.067774]
[1717371800617,0.479,3782.5,3781.9,0.067774]
[1717371800818,0.479,3782.5,3781.9,0.5885344]
[1717371800997,0.479,3782.7,3781.9,0.5885344]
[1717371802717,2.4059,3782.9,3781.9,0.5885344]
[1717371802952,0.479,3782.7,3781.9,0.5885344]
[1717371803124,0.479,3782.7,3782.0,0.50257272]
[1717371806196,2.4059,3782.9,3782.0,0.50257272]
[1717371806437,2.8849,3782.9,3782.0,0.50257272]
[1717371811800,2.8849,3782.9,3782.1,2.4773553]
[1717371812140,0.479,3782.9,3782.1,2.4773553]
[1717371816321,7.28,3783.0,3782.2,0.479]
[1717371816827,7.28,3783.0,3782.3,0.0831553]
[1717371817148,7.28,3783.0,3782.4,0.0831553]
[1717371817333,7.28,3783.0,3782.1,6.0379304]
[1717371817539,7.28,3783.0,3782.2,0.0831553]
[1717371817982,7.28,3783.0,3782.3,2.3942]
[1717371818165,9.92315,3783.4,3782.5,2.8732]
[1717371818316,9.92315,3783.4,3782.5,2.3942]
[1717371818522,9.92315,3783.4,3782.6,0.08303093]
[1717371818713,0.479,3783.3,3782.6,0.08303093]
[1717371820089,0.479,3783.3,3782.5,2.3942]
[1717371820417,0.479,3783.3,3782.6,0.08303093]
[1717371821660,9.92315,3783.4,3782.6,1.07413502]
[1717371821869,7.28,3783.4,3783.0,2.3757]
[1717371822019,7.28,3783.4,3783.1,0.479]
[1717371822227,7.28,3783.4,3783.1,0.56237725]
[1717371822552,7.28,3783.4,3783.0,2.3757]
[1717371823234,9.5838,3783.4,3782.7,0.479]
[1717371824169,2.3038,3783.4,3782.7,0.479]
[1717371825819,7.28,3783.8,3783.3,0.479]
[1717371826140,2.6426,3784.2,3783.2,2.3576]
[1717371826320,2.6426,3784.2,3783.6,0.479]
[1717371827059,2.6426,3784.2,3783.4,0.479]
[1717371827622,2.6426,3784.2,3783.5,0.08305313]
[1717371827819,1.27054,3784.1,3783.4,0.479]
[1717371828025,9.5838,3784.3,3782.5,0.58883132]
[1717371828026,7.28,3784.3,3783.5,2.5277612]
[1717371828363,7.28,3784.3,3783.9,0.479]
[1717371828721,7.28,3784.3,3783.7,0.479]
[1717371829388,7.28,3784.3,3783.5,5.11791]
[1717371829688,7.28,3784.3,3783.8,0.08305313]
[1717371829986,7.28,3784.3,3783.9,0.08244933]
[1717371830151,7.28,3784.3,3783.6,0.479]
[1717371830351,7.28,3784.3,3784.0,0.08244933]
[1717371830565,7.28,3784.3,3783.6,0.479]
[1717371830850,7.28,3784.3,3784.1,0.08244933]
[1717371831051,3.1213,3784.6,3783.6,0.479]
[1717371831246,3.1213,3784.6,3784.2,0.08244933]
[1717371831452,3.1213,3784.6,3783.6,0.479]
[1717371831649,3.1213,3784.6,3784.3,0.08244933]
[1717371831900,0.55821,3784.5,3783.6,0.479]
[1717371832095,3.1213,3784.6,3783.6,0.479]
[1717371832392,3.1213,3784.6,3783.7,0.08244933]
[1717371833768,2.6423,3784.6,3783.7,0.08244933]
[1717371833964,3.1213,3784.6,3783.7,0.08244933]
[1717371839980,3.1213,3784.6,3783.8,2.2747]
[1717371840180,3.1213,3784.6,3783.8,2.35722923]
[1717371840676,2.6423,3784.6,3783.8,2.83622923]
[1717371841303,7.28,3784.9,3784.3,0.479]
[1717371841457,2.64202,3785.0,3784.3,0.479]
[1717371842403,3.12102,3785.0,3784.1,5.39628]
[1717371842606,3.12102,3785.0,3784.4,0.08235612]
[1717371842812,3.12102,3785.0,3784.1,5.39628]
[1717371842966,3.12102,3785.0,3784.5,0.08235612]
[1717371843166,2.9743,3784.7,3783.7,4.89481]
[1717371843495,2.9743,3784.7,3784.6,0.08220967]
[1717371843678,2.9743,3784.7,3783.7,4.89481]
[1717371844065,2.9743,3784.7,3783.8,0.08220967]
[1717371846110,5.61656,3784.7,3783.8,0.08220967]
[1717371846265,6.178216,3784.7,3783.8,0.08220967]
[1717371846606,0.479,3784.3,3783.8,0.08220967]
[1717371846908,0.479,3784.5,3783.7,2.64291]
[1717371847111,0.479,3784.5,3783.9,0.08220967]
[1717371847313,0.479,3784.5,3783.7,2.64291]
[1717371848511,0.479,3784.5,3783.8,0.08220967]
[1717371853729,0.479,3783.9,3783.8,0.08220967]
[1717371854091,0.479,3783.9,3783.1,2.3548]
[1717371854531,0.479,3783.9,3783.2,0.0824937]
[1717371854676,2.6427,3784.0,3783.1,2.3548]
[1717371855077,2.6427,3784.0,3783.1,2.8338]
[1717371855324,7.28,3784.2,3783.6,0.479]
[1717371855615,7.28,3784.2,3783.7,0.08262243]
[1717371856178,7.28,3784.2,3783.4,0.479]
[1717371856399,7.28,3784.2,3783.8,0.08261799]
[1717371856680,7.28,3784.2,3783.4,0.479]
[1717371857010,7.28,3784.2,3783.5,0.08261799]
[1717371859105,3.12144,3784.4,3783.5,0.08261799]
[1717371859316,5.76704763,3784.4,3783.5,0.08261799]
[1717371859685,2.64244,3784.4,3783.6,0.479]
[1717371859921,19.48,3784.6,3784.0,0.479]
[1717371860230,19.48,3784.6,3783.6,2.4953]
[1717371860231,2.64231,3784.6,3783.6,2.4953]
[1717371860524,2.64231,3784.6,3783.9,0.479]
[1717371860741,3.12131,3784.6,3783.7,0.479]
[1717371860878,3.675731,3784.6,3783.7,0.479]
[1717371861080,3.675731,3784.6,3783.3,2.4953]
[1717371861081,2.64253,3784.3,3783.3,2.4953]
[1717371861333,0.479,3784.2,3783.3,2.9743]
[1717371861624,2.64253,3784.3,3783.4,0.0825514]
[1717371864203,2.64253,3784.3,3783.6,0.479]
[1717371864533,2.64253,3784.3,3783.8,0.479]
[1717371865100,2.64253,3784.3,3783.9,0.08257804]
[1717371865646,2.64253,3784.3,3783.6,0.479]
[1717371865827,2.64253,3784.3,3783.7,0.08257804]
[1717371867303,2.64253,3784.3,3783.8,0.479]
[1717371867542,2.4229,3784.5,3783.8,2.8807]
[1717371867905,2.4229,3784.5,3783.9,0.08257804]
[1717371868213,0.554421,3784.6,3783.9,0.08257804]
[1717371868535,4.94093,3784.7,3783.9,0.08257804]
[1717371870313,4.94093,3784.7,3784.0,0.479]
[1717371870847,4.94093,3784.7,3784.1,0.08257804]
[1717371873515,2.64223,3784.7,3784.1,0.08257804]
[1717371873742,3.41817504,3784.7,3784.1,0.08257804]
[1717371873944,3.41817504,3784.7,3783.8,2.4017]
[1717371874411,3.41817504,3784.7,3783.9,0.08257804]
[1717371875209,0.479,3784.6,3783.9,0.08257804]
[1717371875855,2.3931,3784.5,3783.9,0.08257804]
[1717371876158,2.3931,3784.5,3783.7,2.64287]
[1717371876357,0.479,3784.4,3784.0,0.08242714]
[1717371876517,0.479,3784.4,3783.7,2.64287]
[1717371876861,0.479,3784.4,3783.4,2.2524]
[1717371877161,0.479,3784.4,3783.5,0.61954505]
[1717371877547,2.3931,3784.5,3783.6,0.479]
[1717371878165,2.3931,3784.5,3783.7,0.08242714]
[1717371878639,2.8721,3784.5,3783.7,0.08242714]
[1717371878847,2.8721,3784.5,3783.5,0.53711791]
[1717371879031,2.8721,3784.5,3783.6,0.56864235]
[1717371881220,7.28,3785.0,3784.0,0.479]
[1717371881431,3.0,3784.9,3784.1,0.08238719]
[1717371882371,5.64211,3784.9,3784.1,0.08238719]
[1717371882669,1.582011,3784.8,3784.1,0.08238719]
[1717371887206,5.64211,3784.9,3784.1,0.08238719]
[1717371891620,2.64211,3784.9,3784.1,0.08238719]
[1717371896216,2.64211,3784.9,3784.1,2.47258719]
[1717371900941,7.28,3785.0,3784.2,2.69537851]
[1717371901145,7.28,3785.0,3784.5,2.4679]
[1717371901607,7.28,3785.0,3784.6,0.08187297]
[1717371901938,7.28,3785.0,3784.7,2.4679]
[1717371902144,7.28,3785.0,3784.7,2.54977297]
[1717371906021,19.48,3785.4,3784.7,2.54977297]
[1717371906222,7.28,3785.4,3784.7,2.4679]
[1717371906420,7.28,3785.4,3784.8,0.58920773]
[1717371907138,7.28,3785.4,3784.8,1.06820773]
[1717371907336,7.28,3785.4,3785.1,2.2693]
[1717371907708,7.28,3785.4,3785.2,0.0815136]
[1717371911839,0.479,3785.9,3785.2,0.0815136]
[1717371912099,0.479,3785.9,3785.1,2.2693]
[1717371912299,0.479,3785.9,3785.1,2.70342539]
[1717371912451,0.479,3785.9,3785.2,0.0815136]
[1717371918699,0.479,3785.9,3785.1,2.2693]
[1717371923710,0.479,3785.9,3785.0,0.479]
[1717371923711,7.28,3786.0,3785.4,0.479]
[1717371923919,7.28,3786.0,3785.5,2.4923]
[1717371924071,2.64126,3786.1,3785.5,2.4923]
[1717371924259,2.64126,3786.1,3785.6,0.08146037]
[1717371924603,2.64126,3786.1,3785.5,2.4923]
[1717371924954,2.64126,3786.1,3785.6,0.08146037]
[1717371925356,0.479,3786.0,3785.5,2.4923]
[1717371925674,0.479,3786.0,3785.6,0.08146037]
[1717371925866,0.479,3786.0,3785.1,2.804409]
[1717371926074,0.479,3786.0,3785.2,0.08146037]
[1717371926676,2.64126,3786.1,3785.3,0.479]
[1717371926902,2.64126,3786.1,3785.3,2.9713]
[1717371927197,2.64126,3786.1,3785.4,0.08146037]
[1717371930499,0.479,3785.8,3785.4,0.08146037]
[1717371930652,0.479,3785.8,3784.9,2.408]
[1717371930853,0.479,3785.3,3785.0,0.0814648]
[1717371931053,0.479,3785.3,3784.7,2.408]
[1717371931300,0.479,3785.3,3784.8,0.10687042]
[1717371931603,0.479,3785.3,3784.7,2.408]
[1717371931809,2.7295,3785.5,3784.7,2.408]